bitfinex/quotes_ETHUSD_20220123
["timestamp","ask_amount","ask_price","bid_price","bid_amount"]
[1642945235886,23.35,2498.5,2498.2,3.4043479]
[1642945236135,23.35,2498.5,2498.2,4.79e-05]
[1642945236330,23.35,2498.5,2498.1,1.4055031]
[1642945236732,23.35,2498.5,2498.0,0.27639994]
[1642945236936,1.53564368,2498.3,2498.0,0.27639994]
[1642945237130,24.88564368,2498.3,2498.0,0.27639994]
[1642945237935,1.53564368,2498.3,2497.8,1.52376375]
[1642945238132,1.00227,2498.5,2497.8,1.52376375]
[1642945238335,23.35,2498.3,2497.7,3.8913683]
[1642945238532,23.35,2498.3,2497.8,1.52376375]
[1642945238734,23.35,2498.3,2497.7,3.8913683]
[1642945239132,23.35,2498.3,2497.9,1.28730676]
[1642945241290,0.13041,2498.4,2497.9,1.28730676]
[1642945242093,0.13041,2498.4,2498.3,0.62916166]
[1642945242489,0.13041,2498.4,2497.7,1.2071]
[1642945242691,3.7504051,2498.4,2497.7,1.2071]
[1642945242891,23.35,2498.3,2497.7,1.2071]
[1642945243289,23.43685181,2498.3,2497.7,1.2071]
[1642945243489,0.13041,2498.4,2498.1,1.42914405]
[1642945244126,26.94511172,2498.4,2497.7,2.52286305]
[1642945244328,0.13041,2498.2,2497.7,2.52286305]
[1642945245325,0.0237687,2498.2,2498.1,1.48583881]
[1642945245727,19.82913674,2498.4,2497.7,2.52286305]
[1642945246731,19.82913674,2498.4,2498.0,1.52061711]
[1642945246932,23.20513271,2498.3,2498.0,1.52061711]
[1642945247135,0.08685181,2498.4,2498.0,1.52061711]
[1642945247587,0.08685181,2498.4,2497.7,1.2071]
[1642945247887,23.43685181,2498.4,2497.7,1.2071]
[1642945248886,23.35,2498.2,2497.8,1.3193381]
[1642945249187,23.35,2498.2,2497.7,1.2071]
[1642945249188,23.43685181,2498.2,2497.7,1.2071]
[1642945250290,23.43685181,2498.2,2497.9,1.46125665]
[1642945250888,23.35,2498.2,2497.9,1.46125665]
[1642945252934,23.35,2498.2,2497.7,1.2071]
[1642945253934,23.35,2498.2,2497.7,2.69020081]
[1642945254533,2.3538253,2498.5,2498.1,0.43336761]
[1642945254534,1.00227,2498.5,2498.1,0.43336761]
[1642945254735,23.43685181,2498.6,2498.1,0.43336761]
[1642945254977,0.08685181,2498.5,2497.7,1.2200062]
[1642945255778,0.08685181,2498.5,2498.1,1.15557717]
[1642945255979,0.59864312,2499.2,2498.4,0.80749353]
[1642945256182,0.59864312,2499.2,2498.8,1.10897489]
[1642945256583,3.9068,2500.1,2498.8,1.10897489]
[1642945256781,1.2283,2500.2,2498.8,1.10897489]
[1642945256980,1.2283,2500.2,2499.2,1.49473245]
[1642945256981,1.40031537,2499.9,2499.2,1.49473245]
[1642945257582,0.61114999,2500.1,2499.2,2.30222598]
[1642945257782,2.22991,2500.2,2499.2,2.30222598]
[1642945257987,0.9663466,2500.0,2499.2,2.30222598]
[1642945258384,0.9663466,2500.0,2499.2,1.49473245]
[1642945258640,1.45383359,2499.9,2499.2,1.49473245]
[1642945259426,2.05383359,2499.9,2499.2,1.49473245]
[1642945259628,3.05383359,2499.9,2499.2,1.49473245]
[1642945260732,1.6,2499.9,2499.2,1.49473245]
[1642945261933,0.6,2499.9,2499.2,1.49473245]
[1642945262133,1.3,2500.1,2499.2,1.49473245]
[1642945262396,1.6,2500.1,2499.2,1.49473245]
[1642945263193,0.966308,2500.0,2499.2,2.206187]
[1642945263396,4.62954005,2500.0,2499.2,2.206187]
[1642945263593,1.0,2499.9,2499.2,2.206187]
[1642945263794,0.966308,2500.0,2499.2,2.206187]
[1642945263997,0.966308,2500.0,2499.6,1.08954267]
[1642945264400,3.74494105,2500.1,2499.6,1.08954267]
[1642945265000,1.0,2500.0,2499.6,1.08954267]
[1642945265400,0.3,2500.1,2499.6,1.08954267]
[1642945265600,2.61459807,2500.2,2499.6,1.08954267]
[1642945265804,1.61299807,2500.2,2499.6,1.08954267]
[1642945266004,1.91299807,2500.2,2499.6,1.08954267]
[1642945266859,29.52629541,2500.2,2499.3,1.1256]
[1642945267064,29.52629541,2500.2,2499.2,3.7052]
[1642945267065,2.00345,2500.1,2499.2,3.7052]
[1642945267463,3.00345,2500.1,2498.7,1.1862]
[1642945267664,23.35,2500.0,2498.7,5.0172]
[1642945267864,1.33127209,2499.5,2498.8,1.37045561]
[1642945268165,1.33127209,2499.5,2498.8,1.36960818]
[1642945269165,27.05622369,2499.4,2498.8,1.36960818]
[1642945269664,1.0,2499.3,2498.8,1.36960818]
[1642945269873,1.0,2499.3,2498.7,5.0172]
[1642945270076,1.0,2499.3,2498.6,3.7875]
[1642945270273,1.0,2499.3,2498.3,7.0625]
[1642945270274,3.5514128,2499.2,2498.4,1.2216]
[1642945270479,1.0,2499.1,2498.5,3.403787]
[1642945270673,1.0,2499.1,2498.4,1.2216]
[1642945270874,1.0,2499.1,2498.6,1.20800901]
[1642945271186,1.0,2499.1,2498.6,2.62143885]
[1642945271979,1.0,2499.2,2498.6,2.62143885]
[1642945272579,3.57549721,2499.4,2498.6,2.62143885]
[1642945272879,1.0,2499.3,2499.0,0.70845941]
[1642945273479,1.0,2499.6,2499.0,0.70845941]
[1642945273738,1.0,2499.6,2498.7,1.2006]
[1642945273739,1.3,2499.6,2498.7,1.2006]
[1642945274032,4.58311107,2499.6,2498.7,1.5006]
[1642945274231,1.0,2499.6,2498.7,1.5006]
[1642945274830,1.0,2499.6,2498.8,1.48685072]
[1642945275031,1.0,2499.6,2498.9,1.26354658]
[1642945276435,4.61817763,2499.6,2498.7,1.2006]
[1642945277479,1.36095171,2499.2,2498.7,1.2006]
[1642945277679,1.36095171,2499.2,2498.4,1.20418649]
[1642945277878,1.36095171,2499.2,2498.4,1.50418649]
[1642945278078,2.36095171,2499.2,2498.4,1.20418649]
[1642945278582,1.0,2499.2,2498.4,1.20418649]
[1642945278783,3.67671476,2499.1,2498.4,1.20418649]
[1642945278979,1.0,2499.4,2498.4,1.50418649]
[1642945279177,3.88109037,2499.3,2498.4,1.50418649]
[1642945279377,3.88109037,2499.3,2498.4,1.20418649]
[1642945279580,1.21744857,2499.1,2498.4,1.20418649]
[1642945279981,4.80423968,2499.1,2498.4,1.20418649]
[1642945280182,1.0,2499.0,2498.4,1.20418649]
[1642945280388,1.0,2499.0,2498.3,4.98709392]
[1642945280582,1.21744857,2499.1,2498.3,4.98709392]
[1642945280783,1.21744857,2499.1,2498.3,3.8371]
[1642945280986,1.21744857,2499.1,2498.2,1.18733774]
[1642945281236,2.21744857,2499.1,2498.2,2.29192486]
[1642945281440,2.21744857,2499.1,2498.3,3.4040142]
[1642945281639,3.62054585,2499.0,2498.3,3.4040142]
[1642945281940,23.35,2498.9,2498.0,3.9136]
[1642945282139,23.35,2498.8,2498.0,3.9136]
[1642945282335,24.65,2498.8,2498.0,3.9136]
[1642945282536,1.0,2498.7,2498.0,3.9136]
[1642945282736,1.54841919,2498.5,2498.0,3.9136]
[1642945282935,1.0,2498.7,2498.0,3.9136]
[1642945283137,1.0,2498.7,2497.8,2.7717658]
[1642945283138,1.161,2499.4,2498.2,0.36306543]
[1642945283338,1.161,2499.4,2498.2,1.55896543]
[1642945283538,24.511,2499.4,2498.2,1.55896543]
[1642945283737,24.511,2499.4,2498.2,1.1959]
[1642945283940,1.5428554,2499.0,2498.3,1.54328106]
[1642945284147,4.73938183,2499.4,2498.3,1.54328106]
[1642945284345,4.79448686,2499.4,2498.3,1.54328106]
[1642945284744,5.09448686,2499.4,2498.3,2.99103758]
[1642945284979,1.0,2499.3,2498.2,1.1959]
[1642945285180,27.22215162,2499.2,2498.2,1.1959]
[1642945285380,27.82215162,2499.2,2498.2,1.1959]
[1642945285583,24.35,2499.1,2498.2,1.1959]
[1642945285780,3.6091793,2499.0,2498.2,1.1959]
[1642945286185,1.23506038,2498.7,2498.2,1.1959]
[1642945286383,1.23506038,2498.7,2498.0,5.28279192]
[1642945286586,1.23506038,2498.7,2498.1,3.40420779]
[1642945286787,1.23506038,2498.7,2498.0,3.9845]
[1642945286985,2.23506038,2498.7,2498.1,3.40430956]
[1642945287185,1.23506038,2498.7,2498.1,3.40430956]
[1642945287787,1.23506038,2498.7,2498.1,4.85751783]
[1642945287987,4.60062489,2499.0,2498.1,1.45320827]
[1642945288187,1.0,2499.0,2498.1,1.45320827]
[1642945288387,1.0,2499.0,2498.5,0.46326015]
[1642945288642,1.58726187,2499.4,2498.1,1.7858]
[1642945288832,1.58726187,2499.4,2498.2,3.40401897]
[1642945288833,3.76883715,2499.3,2498.2,3.40401897]
[1642945289031,3.76883715,2499.3,2498.1,1.4858]
[1642945289032,1.50071321,2499.1,2498.1,1.4858]
[1642945289437,5.21236759,2499.1,2498.1,1.1858]
[1642945289634,1.0,2499.0,2498.1,2.82911803]
[1642945289833,1.0,2499.0,2498.4,1.10306098]
[1642945290038,1.0,2499.2,2498.5,0.57315039]
[1642945290236,1.0,2499.2,2498.4,1.10306098]
[1642945290536,1.58726187,2499.4,2498.4,1.10306098]
[1642945290737,0.3,2499.2,2498.4,1.10306098]
[1642945290938,3.92850127,2499.3,2498.4,1.10306098]
[1642945291137,1.0,2499.2,2498.4,1.10306098]
[1642945291340,1.0,2499.2,2498.2,1.26221028]
[1642945291341,1.51518282,2499.1,2498.2,1.26221028]
[1642945291540,1.51518282,2499.1,2498.3,3.40420592]
[1642945292040,1.51518282,2499.1,2498.2,1.56221028]
[1642945292483,1.51518282,2499.1,2498.3,3.40422864]
[1642945292678,1.51518282,2499.1,2498.3,4.51085943]
[1642945293280,1.51518282,2499.1,2498.3,1.10663079]
[1642945293479,1.51518282,2499.1,2498.3,1.40663079]
[1642945294078,1.51518282,2499.1,2498.3,1.10663079]
[1642945294283,1.51518282,2499.1,2498.3,1.70663079]
[1642945294679,1.51518282,2499.1,2498.4,3.40413258]
[1642945295284,3.26169734,2499.0,2498.4,3.40413258]
[1642945295483,3.26169734,2499.0,2497.6,2.2338877]
[1642945295484,0.00090708,2498.4,2497.7,8.6376]
[1642945295882,0.00090708,2498.4,2497.8,3.40466631]
[1642945296333,0.00090708,2498.4,2498.1,1.40863493]
[1642945296938,0.00090708,2498.4,2498.2,3.40443408]
[1642945297336,0.00090708,2498.4,2498.2,4.92684295]
[1642945297539,0.00090708,2498.4,2498.3,7.40443408]
[1642945297735,0.00090708,2498.4,2498.3,3.70443408]
[1642945299336,0.00090708,2498.4,2498.3,4.89333408]
[1642945300579,0.00090708,2498.4,2498.3,4.59333408]
[1642945300985,7.08e-06,2498.4,2498.3,5.19333408]
[1642945301187,7.08e-06,2498.4,2498.3,9.18673043]
[1642945301584,7.08e-06,2498.4,2498.3,14.05163043]
[1642945302189,7.08e-06,2498.4,2498.3,17.94083043]
[1642945302586,7.08e-06,2498.4,2498.3,21.11643043]
[1642945304032,7.08e-06,2498.4,2498.3,24.61643043]
[1642945304229,7.08e-06,2498.4,2498.3,23.61643043]
[1642945304634,7.08e-06,2498.4,2498.3,28.72313521]
[1642945305036,7.08e-06,2498.4,2498.3,55.11724499]
[1642945305239,3.25267426,2500.9,2498.5,0.03407529]
[1642945305438,7.48,2501.1,2499.3,0.01209189]
[1642945305638,7.48,2501.1,2499.4,3.68083402]
[1642945305838,7.48,2501.1,2499.5,3.9933]
[1642945305839,10.74169734,2501.1,2499.5,3.9933]
[1642945306038,1.34939245,2500.8,2500.1,1.33208727]
[1642945306238,1.34939245,2500.8,2499.6,5.2707]
[1642945306438,3.26169734,2500.7,2499.6,1.4415]
[1642945307238,1.34939245,2500.8,2499.6,1.4415]
[1642945307485,28.96108979,2500.8,2499.6,1.4415]
[1642945307682,1.22507414,2500.3,2499.6,1.4415]
[1642945307885,1.22507414,2500.3,2499.6,0.3]
[1642945308083,1.22507414,2500.3,2499.5,6.02011949]
[1642945309284,1.0,2500.5,2499.5,6.02011949]
[1642945310488,1.43872662,2500.3,2499.5,6.02011949]
[1642945311752,1.0,2500.6,2499.5,6.64314051]
[1642945312151,1.0,2500.6,2499.5,6.02011949]
[1642945312353,4.62085399,2500.6,2499.5,6.02011949]
[1642945312551,1.0,2500.6,2499.5,6.02011949]
[1642945312754,4.61861577,2500.6,2499.5,6.02011949]
[1642945312952,1.1762942,2500.5,2499.5,6.02011949]
[1642945315184,1.1762942,2500.5,2499.5,2.02681949]
[1642945315584,1.1762942,2500.5,2499.9,1.3487552]
[1642945315788,1.0,2500.6,2499.9,1.3487552]
[1642945315984,1.0,2500.8,2499.9,1.3487552]
[1642945316187,1.0,2501.0,2499.9,1.3487552]
[1642945316388,1.3,2501.0,2499.9,1.3487552]
[1642945317192,1.23077605,2500.9,2499.9,1.9487552]
[1642945317589,1.23077605,2500.9,2500.3,1.49513871]
[1642945317791,7.0167,2501.2,2500.3,1.49513871]
[1642945317994,3.1733,2501.2,2500.3,1.49513871]
[1642945318193,3.70101664,2501.1,2500.2,0.635]
[1642945318393,4.70101664,2501.1,2500.2,0.2921]
[1642945319046,1.0,2501.1,2500.2,0.2921]
[1642945319246,1.24080123,2500.9,2500.2,0.2921]
[1642945320846,1.24080123,2500.9,2500.1,1.25915956]
[1642945321445,1.0,2501.1,2500.1,2.0286419]
[1642945322046,1.0,2501.1,2500.1,1.25915956]
[1642945322484,1.3832106,2500.9,2500.1,1.25915956]
[1642945323286,1.0,2501.1,2500.1,1.25915956]
[1642945324285,0.2004,2501.1,2500.1,1.25915956]
[1642945324589,1.40454126,2501.0,2500.1,1.25915956]
[1642945325392,1.40354784,2501.0,2500.1,1.25915956]
[1642945326445,1.0,2500.8,2500.1,1.25915956]
[1642945326847,1.40354784,2501.0,2500.1,1.25915956]
[1642945327249,1.0,2500.8,2500.1,1.25915956]
[1642945327450,1.40354784,2501.0,2500.1,1.25915956]
[1642945327849,1.0,2500.8,2500.1,1.25915956]
[1642945328251,1.40354784,2501.0,2500.1,1.25915956]
[1642945328458,1.0,2500.8,2500.1,1.25915956]
[1642945328954,1.40354784,2501.0,2500.1,1.25915956]
[1642945329452,1.0,2500.8,2500.1,1.25915956]
[1642945329882,1.40354784,2501.0,2500.1,1.25915956]
[1642945330485,1.0,2500.8,2500.1,1.25915956]
[1642945330883,1.40354784,2501.0,2500.1,1.25915956]
[1642945331290,1.0,2500.8,2500.1,1.25915956]
[1642945331489,1.40354784,2501.0,2500.1,1.25915956]
[1642945331890,1.0,2500.8,2500.1,1.25915956]
[1642945332291,1.40354784,2501.0,2500.1,1.25915956]
[1642945332490,1.0,2500.8,2500.1,1.25915956]
[1642945332890,1.40354784,2501.0,2500.1,1.25915956]
[1642945333391,1.0,2500.9,2500.1,1.25915956]
[1642945333641,3.1733,2501.2,2500.1,1.25915956]
[1642945333839,3.1733,2501.2,2500.1,1.85915956]
[1642945334241,3.1733,2501.2,2500.6,0.65640404]
[1642945334440,0.82160505,2501.4,2500.2,3.65743297]
[1642945334641,0.82160505,2501.4,2500.9,1.39122721]
[1642945335041,0.59445233,2501.7,2500.9,1.99122721]
[1642945335242,6.10359,2502.2,2500.9,2.19142721]
[1642945335243,7.2692,2502.2,2500.9,2.19142721]
[1642945335442,7.68863688,2502.3,2501.0,0.03396308]
[1642945335640,7.68863688,2502.3,2501.1,0.2002]
[1642945336039,0.82160505,2501.7,2501.6,1.43345802]
[1642945336644,7.48,2502.3,2501.6,1.43345802]
[1642945337044,6.3222056,2502.6,2501.6,3.08685802]
[1642945337045,3.0688,2502.6,2501.6,3.08685802]
[1642945337246,7.49213187,2502.8,2501.6,3.47455802]
[1642945337686,0.82160505,2502.2,2501.6,3.47455802]
[1642945337886,0.01213187,2502.8,2502.2,1.23342801]
[1642945338087,0.01213187,2502.8,2501.7,4.332]
[1642945338291,0.01213187,2502.8,2501.7,1.2289]
[1642945338688,1.01213187,2502.8,2501.7,1.2289]
[1642945338991,0.82160505,2502.2,2501.7,1.2289]
[1642945339187,0.01213187,2502.8,2502.3,1.16226766]
[1642945339390,1.01213187,2502.8,2502.3,1.16226766]
[1642945339686,0.01213187,2502.8,2502.3,1.16226766]
[1642945340090,0.82160505,2502.6,2502.3,1.16226766]
[1642945340291,1.0,2503.3,2502.3,1.16226766]
[1642945340488,1.0,2503.3,2502.8,1.14469212]
[1642945340688,1.0,2503.3,2502.3,1.1463]
[1642945341142,25.61989009,2503.4,2502.3,1.1463]
[1642945341348,24.61989009,2503.4,2502.3,1.1463]
[1642945341559,1.0,2503.3,2502.3,1.1463]
[1642945341748,1.9649169,2503.3,2502.3,1.1463]
[1642945341948,1.9649169,2503.3,2502.3,4.13729206]
[1642945342147,1.9649169,2503.3,2502.3,4.17644558]
[1642945342348,1.9649169,2503.3,2502.5,3.5]
[1642945342548,0.82160505,2502.7,2502.3,4.12836867]
[1642945342847,0.82160505,2502.7,2502.4,1.10979196]
[1642945343048,1.0,2503.3,2502.5,2.98835178]
[1642945343447,1.0,2503.5,2502.5,2.98835178]
[1642945343648,7.48,2503.7,2502.5,3.28835178]
[1642945343851,7.48,2504.2,2502.5,3.48855178]
[1642945344050,0.82160505,2503.6,2503.1,0.92316298]
[1642945344252,0.82160505,2503.6,2503.5,1.37553517]
[1642945344448,0.59992809,2504.4,2503.5,1.81373514]
[1642945345089,0.54992809,2504.4,2503.5,1.81373514]
[1642945345588,0.54992809,2504.4,2503.9,1.38009071]
[1642945345989,0.82160505,2504.3,2503.9,1.38009071]
[1642945348936,0.77160505,2504.3,2503.9,1.38009071]
[1642945350334,1.0,2504.6,2503.9,1.38009071]
[1642945350538,7.48,2504.7,2504.0,3.00195942]
[1642945351141,1.99915,2505.5,2504.0,3.00195942]
[1642945351142,0.00265718,2505.6,2504.1,0.2002]
[1642945351343,7.48,2505.6,2504.2,0.0423571]
[1642945351542,0.77160505,2504.5,2504.0,7.23048316]
[1642945351845,0.77160505,2504.5,2503.9,0.3]
[1642945352041,0.77160505,2504.5,2503.7,0.73819997]
[1642945352485,0.77160505,2504.5,2504.0,1.53702724]
[1642945353886,0.77160505,2504.5,2504.0,2.33222724]
[1642945354286,2.52226974,2505.0,2504.0,2.33222724]
[1642945354492,1.2475,2505.0,2504.4,1.42760761]
[1642945354687,0.2475,2505.0,2504.4,1.42760761]
[1642945355088,0.2475,2505.0,2504.1,3.74893708]
[1642945355290,0.77160505,2504.9,2503.9,1.2007]
[1642945355488,0.77160505,2504.9,2503.7,0.43819997]
[1642945355489,0.77160505,2504.9,2503.7,0.13819997]
[1642945355690,1.77132505,2504.9,2503.7,0.13819997]
[1642945355891,23.35,2504.8,2503.7,0.13819997]
[1642945356164,1.10287473,2504.3,2503.7,0.13819997]
[1642945356763,1.10287473,2504.3,2503.5,0.13819997]
[1642945357066,1.10287473,2504.3,2503.2,3.8959]
[1642945357067,1.70287473,2504.3,2503.2,3.8959]
[1642945357461,2.70287473,2504.3,2503.2,3.8959]
[1642945357663,2.70287473,2504.3,2503.0,7.5702]
[1642945357862,1.27131068,2503.6,2503.0,7.5702]
[1642945358064,1.0,2504.2,2503.0,7.5702]
[1642945358264,1.0,2504.2,2503.0,7.8702]
[1642945358465,0.3,2504.2,2503.0,7.5702]
[1642945358664,23.35,2504.1,2502.9,1.42951673]
[1642945358971,4.67786412,2504.0,2502.9,1.42951673]
[1642945359167,1.30216243,2503.8,2502.9,1.42951673]
[1642945359365,3.75226348,2503.7,2502.7,3.9746]
[1642945359571,1.0,2503.6,2502.7,3.9746]
[1642945359767,1.0,2503.6,2502.3,0.27639994]
[1642945359768,4.44895811,2503.5,2502.3,0.27639994]
[1642945360005,5.04895811,2503.5,2502.0,8.9897]
[1642945360195,5.04895811,2503.5,2501.6,1.0534]
[1642945360196,7.48,2503.2,2501.6,1.0534]
[1642945360396,1.11219265,2502.6,2501.6,1.0534]
[1642945360591,6.01050528,2503.1,2501.8,1.17410482]
[1642945360592,7.00714244,2503.1,2501.8,1.17410482]
[1642945360996,1.30047,2503.0,2501.8,2.40857693]
[1642945361199,8.00762434,2503.1,2501.8,2.40857693]
[1642945361200,1.0,2503.1,2501.8,2.40857693]
[1642945361399,4.79094276,2503.1,2501.8,2.40857693]
[1642945361597,1.19828578,2503.0,2501.6,1.0534]
[1642945362000,4.9079471,2503.0,2501.6,1.0534]
[1642945362398,1.19828578,2503.0,2501.7,0.2002]
[1642945362798,1.19828578,2503.0,2502.3,1.13752869]
[1642945363002,1.19828578,2503.0,2501.7,0.2002]
[1642945363202,1.19828578,2503.0,2501.9,0.3]
[1642945363400,1.19828578,2503.0,2501.7,0.2002]
[1642945363401,3.6075002,2502.9,2501.7,0.2002]
[1642945363654,3.75268887,2502.9,2501.7,0.2002]
[1642945363842,1.19828578,2503.0,2501.7,0.2002]
[1642945364041,1.10559246,2502.6,2501.9,1.40505484]
[1642945364243,3.79221928,2502.9,2501.9,1.40505484]
[1642945364442,3.79221928,2502.9,2501.9,2.00505484]
[1642945364641,30.83,2503.2,2501.9,2.00505484]
[1642945364642,1.0,2502.8,2501.9,2.00505484]
[1642945365043,1.0,2503.1,2502.1,1.20975611]
[1642945365243,1.0,2503.1,2502.7,1.44989927]
[1642945365943,1.0,2503.1,2501.9,0.6]
[1642945366145,1.0,2503.1,2502.1,0.3]
[1642945366352,1.0,2503.1,2501.9,0.3]
[1642945366546,1.0,2503.1,2501.7,0.8002]
[1642945366747,1.0,2503.1,2501.7,0.5002]
[1642945366947,1.0,2503.1,2501.7,0.2002]
[1642945367148,1.0,2503.1,2502.3,1.26766301]
[1642945367790,7.48,2503.2,2502.4,1.17036129]
[1642945367991,7.48,2503.2,2502.3,1.86766301]
[1642945368594,7.48,2503.2,2502.7,1.47761678]
[1642945369395,7.48,2503.2,2502.7,2.07761678]
[1642945369695,7.48,2503.2,2502.7,1.77761678]
[1642945369997,7.48,2503.2,2502.7,2.07761678]
[1642945370796,7.48,2503.2,2503.1,1.09781717]
[1642945371239,7.48,2503.2,2502.3,4.1125]
[1642945371441,7.48,2503.2,2502.3,0.8002]
[1642945371643,7.48,2503.2,2502.3,0.5002]
[1642945372240,7.48,2503.2,2502.7,1.11782397]
[1642945373042,7.48,2503.2,2502.7,1.41782397]
[1642945374241,7.48,2503.2,2502.7,1.91802397]
[1642945374442,7.48,2503.2,2502.9,1.11757589]
[1642945374643,7.48,2503.2,2502.9,1.99137589]
[1642945375186,7.48,2503.2,2503.1,4.4002]
[1642945375385,7.48,2503.2,2503.1,4.5]
[1642945376588,0.08685181,2503.9,2503.1,4.5]
[1642945376788,0.08685181,2503.9,2503.1,4.814]
[1642945377794,0.08685181,2503.9,2503.1,8.3649933]
[1642945377990,0.08685181,2503.9,2503.1,8.5651933]
[1642945378292,1.0,2504.1,2503.2,0.13819997]
[1642945378742,1.0,2504.1,2503.8,1.10635147]
[1642945379142,1.0,2504.1,2503.2,1.31759997]
[1642945379342,7.48,2504.2,2503.3,0.2002]
[1642945380746,7.48,2504.2,2503.7,1.44763488]
[1642945381146,7.48,2504.2,2503.7,2.04763488]
[1642945381947,7.48,2504.2,2503.7,1.74763488]
[1642945382149,7.48,2504.2,2503.7,2.04763488]
[1642945383590,1.0,2504.5,2503.7,2.04763488]
[1642945383994,1.46462379,2504.6,2503.7,2.04763488]
[1642945386243,1.0,2504.7,2503.7,2.04763488]
[1642945387443,1.0,2504.7,2504.1,1.49381446]
[1642945388046,1.0,2504.7,2503.6,4.1802]
[1642945388244,1.0,2504.7,2503.6,4.4802]
[1642945388447,6.15137829,2504.9,2503.6,4.4802]
[1642945388646,0.01211867,2504.5,2503.6,3.8802]
[1642945388844,0.01211867,2504.5,2503.6,4.1802]
[1642945389044,0.01211867,2504.5,2503.6,4.4802]
[1642945389245,0.01211867,2504.5,2503.8,1.38185007]
[1642945389447,7.48,2504.7,2504.2,1.42419362]
[1642945389897,1.32965922,2504.6,2504.2,1.42419362]
[1642945390195,0.32965922,2504.6,2504.2,1.42419362]
[1642945390395,0.27965922,2504.6,2504.2,2.02419362]
[1642945391200,0.77160505,2504.9,2504.2,2.02419362]
[1642945391404,0.77160505,2504.9,2504.7,1.46023093]
[1642945392305,0.2475,2505.0,2504.7,1.76023093]
[1642945392504,0.2475,2505.0,2504.8,0.3]
[1642945394742,0.2475,2505.0,2504.9,3.5002]
[1642945394942,0.2475,2505.0,2504.9,3.3]
[1642945395143,0.2475,2505.0,2504.9,3.6]
[1642945396552,0.2475,2505.0,2504.7,1.46023093]
[1642945396751,0.2475,2505.0,2504.4,1.3853]
[1642945396954,0.2475,2505.0,2504.3,3.8352]
[1642945397252,0.33435181,2505.0,2504.2,0.2002]
[1642945397897,1.37997279,2504.9,2504.2,0.2002]
[1642945398297,1.37997279,2504.9,2504.1,1.40099896]
[1642945398497,0.08685181,2504.8,2504.1,0.1595]
[1642945398702,0.08685181,2504.8,2504.0,5.0413]
[1642945398703,3.63118999,2504.8,2504.0,5.0413]
[1642945398900,3.63118999,2504.8,2503.7,3.2578]
[1642945399118,1.0,2504.7,2503.7,3.2578]
[1642945399498,1.37997279,2504.9,2503.7,3.2578]
[1642945399699,1.08687103,2504.5,2503.8,1.10431885]
[1642945399899,3.6444156,2504.9,2503.8,1.70431885]
[1642945400100,1.0,2504.8,2503.8,1.70431885]
[1642945400499,1.01187723,2505.0,2503.8,1.70431885]
[1642945400899,6.03335702,2505.0,2503.7,0.3]
[1642945401140,1.0,2504.9,2503.7,0.3]
[1642945401349,1.0,2504.9,2503.6,3.8087]
[1642945401547,3.82545559,2504.8,2503.6,3.8087]
[1642945401945,1.0,2504.7,2503.6,3.8087]
[1642945402246,1.38015368,2504.6,2503.9,1.39973359]
[1642945402446,1.38015368,2504.6,2503.6,3.8087]
[1642945402745,1.38015368,2504.6,2503.6,0.6]
[1642945402945,1.38015368,2504.6,2503.6,0.3]
[1642945403344,1.38015368,2504.6,2503.5,5.5523]
[1642945403545,1.38015368,2504.6,2504.0,1.54939624]
[1642945403744,1.0,2504.9,2504.0,1.54939624]
[1642945403949,1.0,2504.9,2504.0,2.14939624]
[1642945405692,1.0,2505.1,2504.0,2.14939624]
[1642945405896,3.28585846,2505.0,2504.0,2.14939624]
[1642945406297,1.16397938,2505.0,2504.0,2.14939624]
[1642945407098,1.16397938,2505.0,2504.4,1.29049051]
[1642945407499,1.16397938,2505.0,2504.1,3.58585846]
[1642945407898,1.0,2505.1,2504.1,3.78605846]
[1642945408299,1.0,2505.1,2504.1,5.25701951]
[1642945408751,0.77160505,2505.2,2504.1,5.25701951]
[1642945408952,0.77160505,2505.2,2504.7,1.29242338]
[1642945411254,0.77160505,2505.2,2504.3,4.37748068]
[1642945412389,0.77160505,2505.2,2504.5,1.17181881]
[1642945412593,0.77160505,2505.2,2504.6,3.05750909]
[1642945413392,0.77160505,2505.2,2504.6,3.25770909]
[1642945413891,0.77160505,2505.2,2505.1,1.31842185]
[1642945414093,0.77160505,2505.2,2505.1,1.91842185]
[1642945414494,0.04,2505.5,2505.1,1.91761249]
[1642945414693,0.04,2505.5,2505.2,3.10914612]
[1642945415091,0.04,2505.5,2505.1,3.15531249]
[1642945415495,0.04,2505.5,2505.2,3.07602965]
[1642945415693,0.77160505,2505.3,2505.2,3.07602965]
[1642945416240,0.04,2505.5,2505.2,3.07602965]
[1642945416440,0.04,2505.5,2505.2,3.01669488]
[1642945417141,0.04,2505.5,2505.2,3.05997264]
[1642945417342,0.04,2505.5,2505.1,3.15531249]
[1642945417540,0.04,2505.5,2505.2,3.05013971]
[1642945417741,0.04,2505.5,2505.2,3.01512596]
[1642945417941,0.77160505,2505.4,2505.2,3.01512596]
[1642945418142,0.04,2505.5,2505.2,3.01512596]
[1642945418741,0.04,2505.5,2505.2,3.21532596]
[1642945418943,0.04,2505.5,2505.4,5.2502]
[1642945419146,0.04,2505.5,2505.4,9.29872243]
[1642945419341,0.04,2505.5,2505.4,9.59872243]
[1642945422104,0.04,2505.7,2505.5,7.6]
[1642945422302,0.04,2505.7,2505.4,4.54872243]
[1642945422303,0.04,2505.7,2505.6,3.866577]
[1642945422499,0.04,2505.8,2505.7,4.5]
[1642945422699,0.04,2505.8,2505.7,3.48842161]
[1642945422898,0.04,2505.8,2505.7,0.3]
[1642945423099,0.04,2505.8,2505.7,2.69396663]
[1642945423299,0.04,2505.8,2505.7,6.14988935]
[1642945423499,0.04,2505.8,2505.7,3.19416663]
[1642945423743,0.04,2505.8,2505.7,6.36564394]
[1642945424542,0.04,2506.1,2505.7,8.65146003]
[1642945424848,0.04,2506.1,2505.9,23.35]
[1642945424849,0.04035807,2506.0,2505.9,23.35]
[1642945425048,0.04035807,2506.0,2505.9,24.65]
[1642945425244,0.04,2506.8,2506.0,5.55]
[1642945425442,0.04,2506.8,2506.1,3.66024105]
[1642945425644,0.04,2506.8,2506.1,3.96024105]
[1642945425843,0.04,2506.8,2506.2,1.59614818]